Cogmind - Beta 16 @@@ ROGUE MODE // 2026.02.05 @ 03:30:03 Player: shapeshifter Result: Destroyed by G-50 Soldier with Heavy Laser Performance ------------- Evolutions (1) 500 Regions Visited (6) 1200 Robots Destroyed (4) 20 Value Destroyed (76) 76 Prototype IDs (23) 460 Alien Tech Used (0) 0 Bonus (500) 500 TOTAL SCORE: 2756 Bonus ------- Pacifist 200 Aligned with FarCom 300 Cogmind --------- Core Integrity 0/400 Matter 289/300 Energy 98/100 System Corruption 0% Temperature Cool (9) Movement Core (50) Location -8/Mines Parts ------- > --- POWER (1) -------- (None) > --- PROPULSION (2) --- (None) > --- UTILITY (4) ------ Visual Processing Unit Hacking Suite Hacking Suite > --- WEAPON (2) ------- (None) > --- INVENTORY (5) ---- Ion Engine Light Armor Plating Light Armor Plating Rocket Launcher Field Lobotomy Kit (5) Peak State ------------ > --- POWER ------------ (None) > --- PROPULSION ------- (None) > --- UTILITY ---------- Visual Processing Unit Hacking Suite Hacking Suite > --- WEAPON ----------- Flail > --- INVENTORY -------- Ion Engine Light Armor Plating Light Armor Plating Rocket Launcher Field Lobotomy Kit [Rating: 11] Favorites ----------- Power None Propulsion None Utility Hacking Suite Processor Visual Processing Unit Hackware Hacking Suite Weapon Small Laser Energy Gun Small Laser Ballistic Gun Assault Rifle Impact Weapon Flail Build | -11 -10 -10 -9 -9 -9 -8 ------- Run | Yrd Mat Min Mat Min Exi Min Slots Evolved 2 | . . . 2 . . . Power . | . . . . . . . Propulsion . | . . . . . . . Utility 2 | . . . 2 . . . Weapon . | . . . . . . . Parts Attached 6 | 2 . . 4 . . . Power . | . . . . . . . Engine . | . . . . . . . Core . | . . . . . . . Reactor . | . . . . . . . Propulsion . | . . . . . . . Treads . | . . . . . . . Leg . | . . . . . . . Wheel . | . . . . . . . Hover . | . . . . . . . Flight . | . . . . . . . Utility 3 | . . . 3 . . . Device . | . . . . . . . Storage . | . . . . . . . Processor 1 | . . . 1 . . . Hackware 2 | . . . 2 . . . Protection . | . . . . . . . Artifact . | . . . . . . . Weapon 3 | 2 . . 1 . . . Energy Gun 1 | 1 . . . . . . Energy Cannon . | . . . . . . . Ballistic Gun 1 | 1 . . . . . . Ballistic Cannon . | . . . . . . . Launcher . | . . . . . . . Special Weapon . | . . . . . . . Impact Weapon 1 | . . . 1 . . . Slashing Weapon . | . . . . . . . Piercing Weapon . | . . . . . . . Special Melee Weapon . | . . . . . . . Unidentified Prototypes . | . . . . . . . Parts Lost 1 | . . . . . . 1 Power . | . . . . . . . Propulsion . | . . . . . . . Utility . | . . . . . . . Weapon 1 | . . . . . . 1 Highest Loss Streak 1 | . . . . . . 1 To Critical Strikes . | . . . . . . . Average Backups 4 | 1 2 5 5 5 5 5 Power 1 | 1 2 2 1 1 1 1 Propulsion . | . . . . . . . Utility 2 | . . 3 3 3 2 2 Weapon . | . . . . 1 1 1 Tool/Special . | . . . . . . . Unused Backups 7 | . . . 1 . 1 5 Power 2 | . . . 1 . . 1 Propulsion . | . . . . . . . Utility 3 | . . . . . 1 2 Weapon 1 | . . . . . . 1 Tool/Special 1 | . . . . . . 1 Average Slot Usage (%) 34 | . 28 28 31 44 44 44 Processor 4 | . . . 2 11 11 11 Hackware 10 | . . . 10 22 22 22 Energy Gun 7 | . 14 14 7 . . . Ballistic Gun 7 | . 14 14 7 . . . Impact Weapon 4 | . . . 3 11 11 11 Peak Build Rating 11 | 2 2 2 10 10 11 11 Average Rating 5 | 1 2 2 5 10 10 10 On Entrance 5 | . 2 2 2 10 10 11 Avg Prop Armor Cover (%) . | . . . . . . . Naked Turns . | . . . . . . . Heaviest Build 3 | 3 3 3 3 2 2 2 Greatest Support 3 | 3 3 3 3 3 3 3 Greatest Overweight (x) . | . . . . . . . Average Overweight (x) . | . . . . . . . Largest Inventory Capacity 5 | 5 5 5 5 5 5 5 Average Capacity 5 | 5 5 5 5 5 5 5 Most Carried 5 | 2 5 5 5 5 5 5 Average Carried 4 | 1 2 5 5 5 5 5 Final Capacity 5 | 5 5 5 5 5 5 5 Final Carried 5 | 2 5 5 5 5 5 5 Class Distribution -------------------- 62% | Mutant 37% | Hacker-Mutant Dominant Class ---------------- Mutant | -10/Materials Mutant | -10/Mines Mutant | -9/Materials Hacker-Mutant | -9/Mines Hacker-Mutant | -9/Exiles Hacker-Mutant | -8/Mines Resources | -11 -10 -10 -9 -9 -9 -8 ----------- Run | Yrd Mat Min Mat Min Exi Min Matter Collected 286 | 220 . . 66 . . . Remotely . | . . . . . . . Salvage Created 85 | . . . 68 . . 17 Parts 8 | . . . 8 . . . Haulers Intercepted . | . . . . . . . Recyclers Shooed . | . . . . . . . Parts Field Recycled . | . . . . . . . Retrieved Matter . | . . . . . . . Parts Self-Destructed . | . . . . . . . Prevented . | . . . . . . . Parts Restored . | . . . . . . . Kills | -11 -10 -10 -9 -9 -9 -8 ------- Run | Yrd Mat Min Mat Min Exi Min Combat Hostiles Destroyed 2 | . . . 1 . . 1 Guns 1 | . . . 1 . . . Classes Destroyed 3 | . . . 2 . . 1 Operator 2 | . . . 2 . . . Swarmer 1 | . . . . . . 1 Grunt 1 | . . . 1 . . . Best Kill Streak 1 | . . . 1 . . 1 Combat Bots Only 1 | . . . 1 . . 1 Max Kills in Single Turn 1 | . . . 1 . . 1 Gunslinging . | . . . . . . . Exploded . | . . . . . . . Melee . | . . . . . . . Uniques/NPCs Destroyed . | . . . . . . . Combat | -11 -10 -10 -9 -9 -9 -8 -------- Run | Yrd Mat Min Mat Min Exi Min Hostile Shots Fired 122 | . . 38 24 . . 60 Missed 37 | . . 11 6 . . 20 Hits 85 | . . 27 18 . . 40 Projectile 85 | . . 27 18 . . 40 Damage Taken 769 | . . 196 200 . . 373 Core 529 | . . 113 147 . . 269 Absorbed by Shields . | . . . . . . . Core Remaining (%) 77 | 100 . 54 . . . . Volleys Fired 14 | . . . 14 . . . Largest 2 | . . . 2 . . . Hottest 60 | . . . 60 . . . Shots Fired 28 | . . . 28 . . . Gun 28 | . . . 28 . . . Cannon . | . . . . . . . Launcher . | . . . . . . . Special . | . . . . . . . Kinetic 14 | . . . 14 . . . Thermal 14 | . . . 14 . . . Explosive . | . . . . . . . Electromagnetic . | . . . . . . . Robot Hit Streak 3 | . . . 3 . . . Robot Miss Streak 3 | . . . 3 . . . Penetration Max . | . . . . . . . Secondary Targets . | . . . . . . . Shots Hit Robots 21 | . . . 19 . . 2 Core Hits 5 | . . . 5 . . . Critical Kills . | . . . . . . . Critical Parts Destroyed . | . . . . . . . Critical Strikes . | . . . . . . . Melee Attacks 10 | . . . 3 . . 7 Impact 10 | . . . 3 . . 7 Slashing . | . . . . . . . Piercing . | . . . . . . . Sneak Attacks 2 | . . . 2 . . . Combat Hostiles . | . . . . . . . Follow-up Attacks . | . . . . . . . Damage Inflicted 463 | . . 7 383 . . 73 Guns 193 | . . . 193 . . . Cannons . | . . . . . . . Explosions . | . . . . . . . Melee 263 | . . . 190 . . 73 Ramming 7 | . . 7 . . . . Kinetic 151 | . . . 151 . . . Thermal 42 | . . . 42 . . . Explosive . | . . . . . . . Electromagnetic . | . . . . . . . Impact 263 | . . . 190 . . 73 Slashing . | . . . . . . . Piercing . | . . . . . . . Highest Corruption . | . . . . . . . Average Corruption . | . . . . . . . Corruption Purged . | . . . . . . . Corruption Blocked . | . . . . . . . Overload Shots . | . . . . . . . Overflow Damage 34 | . . . . . . 34 Projectiles . | . . . . . . . Explosions . | . . . . . . . Melee 34 | . . . . . . 34 Knockbacks 1 | . . . 1 . . . Impact 1 | . . . 1 . . . Kinetic . | . . . . . . . Secondary . | . . . . . . . Self-Inflicted Damage 3 | . . 3 . . . . Shots . | . . . . . . . Rammed 3 | . . 3 . . . . Targets Rammed 3 | . . 3 . . . . Kicked . | . . . . . . . Crushed . | . . . . . . . Highest Temperature 18 | . . . 18 . . . Average Temperature 9 | . . . 9 . . . Received Heat Transfer 141 | . . . 87 . . 54 Siege Activations . | . . . . . . . Martial Activations . | . . . . . . . Shielding Activations . | . . . . . . . Robots Disrupted . | . . . . . . . Combat Hostiles . | . . . . . . . Robots Corrupted 1 | . . . . . . 1 Combat Hostiles 1 | . . . . . . 1 Parts Fried 1 | . . . . . . 1 Impact Corruptions 1 | . . . . . . 1 Robots Melted . | . . . . . . . Combat Hostiles . | . . . . . . . Parts Melted . | . . . . . . . Heat Transferred 100 | . . . 100 . . . Parts Sabotaged . | . . . . . . . Parts Stolen . | . . . . . . . Parts Stripped . | . . . . . . . Power Chain Reactions . | . . . . . . . Alert | -11 -10 -10 -9 -9 -9 -8 ------- Run | Yrd Mat Min Mat Min Exi Min Maximum Alert Level . | . . . . . . . Low Security (%) 100 | 100 100 100 100 100 . 100 Level 1 . | . . . . . . . Level 2 . | . . . . . . . Level 3 . | . . . . . . . Level 4 . | . . . . . . . Level 5 . | . . . . . . . High Security . | . . . . . . . Max Security . | . . . . . . . Peak Influence 30 | . 30 20 30 15 . 30 Initial 7 | . . 7 7 . . . Average 6 | . 4 1 11 9 . 8 Influence Increases 156 | . 30 20 61 15 . 30 Destroy 0b10 Robot/C 60 | . . 20 20 . . 20 Destroy 0b10 Robot/NC 10 | . . . 10 . . . Destroy Leader 20 | . . . 10 . . 10 Successful Hack 6 | . . . 6 . . . Partial Spotted 30 | . . . 15 15 . . Lose Combat Pursuer 30 | . 30 . . . . . Influence Decreases 146 | . 10 20 81 . 15 20 Entered New Map 41 | . . 13 13 . 15 . Time Decay 95 | . 10 7 68 . . 10 Lost Part 10 | . . . . . . 10 Squads Dispatched 1 | . . . 1 . . . Investigation . | . . . . . . . Extermination . | . . . . . . . Reinforcement 1 | . . . 1 . . . Assault . | . . . . . . . Garrison . | . . . . . . . Intercept . | . . . . . . . Searches Triggered . | . . . . . . . Construction Impeded . | . . . . . . . Haulers Reinforced . | . . . . . . . Active Scanning Responses . | . . . . . . . Cargo Convoy Interrupts . | . . . . . . . Stealth | -11 -10 -10 -9 -9 -9 -8 --------- Run | Yrd Mat Min Mat Min Exi Min Distress Signals 2 | . . . 2 . . . Communications Jammed . | . . . . . . . Distress Signals . | . . . . . . . Times Spotted 24 | . 2 3 12 . . 7 Peak Tracking Total 10 | . 2 3 10 . . 6 Tactical Retreats 1 | . 1 . . . . . Traps | -11 -10 -10 -9 -9 -9 -8 ------- Run | Yrd Mat Min Mat Min Exi Min Traps Triggered . | . . . . . . . Indirectly . | . . . . . . . Trap Hack Attempts . | . . . . . . . Triggered . | . . . . . . . Disarmed . | . . . . . . . Reprogrammed . | . . . . . . . Reused . | . . . . . . . Traps Extracted . | . . . . . . . Installed . | . . . . . . . Triggered . | . . . . . . . Machines | -11 -10 -10 -9 -9 -9 -8 ---------- Run | Yrd Mat Min Mat Min Exi Min Machines Disabled . | . . . . . . . Max in Single Turn . | . . . . . . . Machines Repaired . | . . . . . . . Machines Dismantled . | . . . . . . . Machines Sabotaged . | . . . . . . . Overloaded Fab Kills . | . . . . . . . Hacking | -11 -10 -10 -9 -9 -9 -8 --------- Run | Yrd Mat Min Mat Min Exi Min Machines Accessed 5 | . . . 3 . 2 . Terminals 2 | . . . 2 . . . Fabricators . | . . . . . . . Repair Stations . | . . . . . . . Recycling Units 1 | . . . 1 . . . Scanalyzers . | . . . . . . . Garrison Access . | . . . . . . . Total Hacks 7 | . . . 4 . 3 . Successful 6 | . . . 3 . 3 . Failed 1 | . . . 1 . . . Catastrophic . | . . . . . . . Database Lockouts . | . . . . . . . Manual 3 | . . . 2 . 1 . Terminals 3 | . . . 3 . . . Fabricators . | . . . . . . . Repair Stations . | . . . . . . . Recycling Units 1 | . . . 1 . . . Scanalyzers . | . . . . . . . Garrison Access . | . . . . . . . Terminal Hacks 5 | . . . 2 . 3 . Record 2 | . . . . . 2 . Branch Access Points 1 | . . . 1 . . . Registered Components 1 | . . . 1 . . . Proto ID Catalog 1 | . . . . . 1 . Fabricator Hacks . | . . . . . . . Repair Station Hacks . | . . . . . . . Recycling Unit Hacks 1 | . . . 1 . . . Retrieve Components 1 | . . . 1 . . . Scanalyzer . | . . . . . . . Garrison Access Hacks . | . . . . . . . Unauthorized Hacks . | . . . . . . . Terminals . | . . . . . . . Fabricators . | . . . . . . . Repair Stations . | . . . . . . . Recycling Units . | . . . . . . . Scanalyzers . | . . . . . . . Garrison Access . | . . . . . . . Data Cores Recovered 1 | . . . 1 . . . Used . | . . . . . . . Hacking Detections 2 | . . . 2 . . . Full Trace Events . | . . . . . . . Feedback Events . | . . . . . . . Feedback Blocked . | . . . . . . . Robot Schematics Acquired . | . . . . . . . Robots Built . | . . . . . . . Authchips . | . . . . . . . Time . | . . . . . . . Total Robot Build Rating . | . . . . . . . Part Schematics Acquired . | . . . . . . . Parts Built . | . . . . . . . Authchips . | . . . . . . . Time . | . . . . . . . Total Part Build Rating . | . . . . . . . Part Studies Acquired . | . . . . . . . Parts Repaired . | . . . . . . . Time . | . . . . . . . Parts Recycled . | . . . . . . . Recycled Matter . | . . . . . . . Retrieved Matter . | . . . . . . . Retrieved Components 1 | . . . 1 . . . Parts Scanalyzed . | . . . . . . . Part Schematics Acquired . | . . . . . . . Parts Damaged . | . . . . . . . Bothacking | -11 -10 -10 -9 -9 -9 -8 ------------ Run | Yrd Mat Min Mat Min Exi Min Used RIF Installer . | . . . . . . . Robots Hacked . | . . . . . . . Non-combat . | . . . . . . . Combat . | . . . . . . . Robot Hacks Applied . | . . . . . . . Relay Couplers Released . | . . . . . . . Fabnet Peak Effective % . | . . . . . . . Robots Rewired . | . . . . . . . Allies Hacked . | . . . . . . . Hacks Repelled . | . . . . . . . Allies | -11 -10 -10 -9 -9 -9 -8 -------- Run | Yrd Mat Min Mat Min Exi Min Total Allies 2 | . . 2 . . . . Largest Group 2 | . . 2 . . . . Highest-Rated Group 43 | . . 43 . . . . Highest-Rated Ally 31 | . . 31 . . . . Total Orders . | . . . . . . . Ally Attacks 7 | . . 7 . . . . Total Damage 92 | . . 92 . . . . Kills 1 | . . 1 . . . . Allies Corrupted . | . . . . . . . Allies Melted . | . . . . . . . Intel | -11 -10 -10 -9 -9 -9 -8 ------- Run | Yrd Mat Min Mat Min Exi Min Active Infowar (turns) 236 | . . . 53 10 122 51 Optics 236 | . . . 53 10 122 51 Robot Analysis Total . | . . . . . . . Derelict Logs Recovered 2 | . . 2 . . . . Drone Launches . | . . . . . . . Drone Recoveries . | . . . . . . . Exploration | -11 -10 -10 -9 -9 -9 -8 ------------- Run | Yrd Mat Min Mat Min Exi Min Turns Passed 655 | 33 70 165 204 10 122 51 Spaces Moved 1113 | 54 133 324 276 19 240 67 Core 1113 | 54 133 324 276 19 240 67 Treads . | . . . . . . . Legs . | . . . . . . . Wheels . | . . . . . . . Hover . | . . . . . . . Flight . | . . . . . . . Fastest Speed 50 | 50 50 50 50 50 50 50 Average Speed 50 | 50 50 50 50 50 50 50 Slowest Speed 50 | 50 50 50 50 50 50 50 Overloaded Moves . | . . . . . . . Propulsion Burnouts . | . . . . . . . Robots Hopped . | . . . . . . . Potential Cave-ins . | . . . . . . . Cave-ins Triggered . | . . . . . . . Exploration Rate (%) 33 | 3 29 75 34 6 63 27 Regions Visited 6 Branch Regions 4 Pre-discovered Areas 1 | . . . . . 1 . Known Exits Taken 2 | . . 1 1 . . . Unknown Exits Taken 4 | 1 1 . . 1 1 . Scrap Searched . | . . . . . . . Spaces Dug . | . . . . . . . Terrain Destroyed . | . . . . . . . Melee . | . . . . . . . Projectile . | . . . . . . . AOE . | . . . . . . . Terrain Rammed . | . . . . . . . Walls Destroyed . | . . . . . . . Machines Disabled . | . . . . . . . Actions | -11 -10 -10 -9 -9 -9 -8 --------- Run | Yrd Mat Min Mat Min Exi Min Total 1161 | 59 135 326 308 18 241 74 Wait 8 | . . . 8 . . . Move 1107 | 53 132 323 275 18 239 67 Hop . | . . . . . . . Pick Up 9 | 4 3 . 1 . 1 . Fast Attach 4 | . . . 4 . . . Attach 2 | 2 . . . . . . Detach . | . . . . . . . Swap . | . . . . . . . Drop 4 | . . . 3 . 1 . Fire 14 | . . . 14 . . . Melee 10 | . . . 3 . . 7 Ram 3 | . . 3 . . . . Kick . | . . . . . . . Crush . | . . . . . . . Escape Stasis . | . . . . . . . Rewire . | . . . . . . . Trap . | . . . . . . . Miscellaneous . | . . . . . . . Route ------- -11/Scrapyard -10/Materials (discovered 2 exits: *Mat / [*Min]) -10/Mines -9/Materials (discovered 3 exits: [*Mat] / *Min x2) -9/Mines -9/Exiles (discovered 2 exits: [*Min x2]) -8/Mines History --------- Turn | Location | Event 4 | -11/Scrapyard | Discovered new exit (range 15) 34 | -11/Scrapyard | Entered Materials 54 | -10/Materials | Discovered new exit (range 16) 86 | -10/Materials | Discovered new exit (range 16) 104 | -10/Materials | Entered Mines 229 | -10/Mines | Identified exit to Materials 269 | -10/Mines | Entered Materials 269 | -9/Materials | Evolved 2 slots: Utility x2 301 | -9/Materials | Build established: Mutant 385 | -9/Materials | Discovered new exit (range 16) 439 | -9/Materials | Identified exit to Mines 473 | -9/Materials | Entered Mines 481 | -9/Mines | Deemed a non-threat by the Exiles lab entrance 481 | -9/Mines | Discovered new exit (range 5) 483 | -9/Mines | Entered Exiles 490 | -9/Exiles | Discovered new exit (range 17) 496 | -9/Exiles | Met 8R-AWN 504 | -9/Exiles | Met EX-HEX 519 | -9/Exiles | Met EX-BIN 525 | -9/Exiles | Met EX-DEC 528 | -9/Exiles | Learned location of Zion (-6) 543 | -9/Exiles | Aligned with FarCom system 543 | -9/Exiles | Given EX-Vault access code 555 | -9/Exiles | Opened EX-Vault 558 | -9/Exiles | Found Field Lobotomy Kit 569 | -9/Exiles | Warned to stay clear of 0b10 Research branches 601 | -9/Exiles | Discovered new exit (range 10) 605 | -9/Exiles | Left Exiles lab with Field Lobotomy Kit 605 | -9/Exiles | Entered Mines 617 | -8/Mines | Core integrity fell below 50% 620 | -8/Mines | Found a Scrap Suit stashed away for nefarious purposes 653 | -8/Mines | Core integrity fell below 20% 656 | -8/Mines | Destroyed by G-50 Soldier with Heavy Laser Last Messages --------------- And if we have to leave here due to unforeseen circumstances, don't worry the FarCom system will continue to maintain contact via our distributed network. 00601_ EXIT=FOUND LOCATION=UNKNOWN GOAL=ESCAPE 00605_ Receiving FarCom transmissions... 00620_ A message is left with an item here: "H4-X0R! I managed to smuggle one out! Take this to the hideout, the fools near Old Recycling think they can use this tech to beat 0b10 one day, and now we just have to find a way to safely deliver this to MAIN.C to get on their good side and convince them to let us into the system." 00625_ S-10 Pest destroyed. 00637_ Destroyed Flight Unit. 00637_ S-10 Pest system corrupted by crushing effect. 00638_ S-10 Pest system terminally corrupted. 00638_ Lgt. Assault Rifle fried. 00646_ K-01 Serf collects debris. 00654_ Flail destroyed. 00655_ K-01 Serf collects debris. Map ----- +----------------------------------------------------+ | ????????# #????????????????????????????? | | ????????# """ """ #????????????????????????????? | | ????????# """ """ #????????????????????????????? | | ????????# """ """ #????????????????????????????? | | ????????# #????????????????????????????? | | ????????# """ #????????????????????????????? | | ????????# """ #????????????????????????????? | | ????????# """ #????????????????????????????? | | ????????# #????????????????????????????? | | ????????######### ##????????????????????????????? | | ????????????????# ###???????????? ?????????????? | | ????????????????# ###?????????? ?????????????? | | ????????????????## ##???????? #?????????????? | | ?????????????????## ##??????? ###???????????? | | ???????????????#### #??????? ???????????? | | ??????????????## ##?????? ????????????? | | ??????? ?????# """ ##????? #????????????? | | ??????? ?????# """ #????# ##???????????? | | ???????# ????# """ ##?## #???????????? | | ???????# ????# ### #???????????? | | ???????# ????## ## #???????????? | | ???????# ##??## #???????????? | | ???????# #?# u ##???????????? | | ???????# ##k ggg #### ##????????????? | | ??????## u ##?# ##?????????????? | | ??????# @ ### ##??????????????? | | ??????# s### =%[ ! #???????????????? | | ??????## s #### *= #???????????????? | | ???????## ##?# ## #???????????????? | | ????????## #?# %#### ##???????????????? | | ?????????# #?# ##??###????????????????? | | ????????## ##?# ##??????????????????????? | | ????????# ####??# #???????????????????????? | | ????????# ##?????## ##???????????????????????? | | ????????# #???????####????????????????????????? | | ????????## ##???????????????????????????????????? | | ?????????###?????????????????????????????????????? | | ?????????????????????????????????????????????????? | | ?????????????????????????????????????????????????? | | ?????????????????????????????????????????????????? | | ?????????????????????????????????????????????????? | | ?????????????????????????????????????????????????? | | ?????????????????????????????????????????????????? | | ?????????????????????????????????????????????????? | | ?????????????????????????????????????????????????? | | ?????????????????????????????????????????????????? | | ?????????????????????????????????????????????????? | | ?????????????????????????????????????????????????? | | ?????????????????????????????????????????????????? | | ?????????????????????????????????????????????????? | +----------------------------------------------------+ Best States ------------- Heat Dissipation 28 Energy Generation 5 Energy Capacity 100 Matter Stores 300 Matter Capacity 300 Sight Range 18 Terrain Scan Density 10 Evasion (%) 50 Offensive Hacking 20 Item Schematics ----------------- None Robot Schematics ------------------ None Fabricated ------------ Nothing Repaired ---------- Nothing Studied --------- None Alien Tech Used ----------------- None Achievements -------------- None Challenges ------------ None Game ------ Seed CommDecoyRailgun Manual? 0 Play Time 00:07:53 Cumulative 678.4 hours Start 2026.02.05 @ 03:04:16 End 2026.02.05 @ 03:30:03 Sessions 2 Manual Loads 0 Difficulty Rogue Special Mode None Game No. 842 Rogue 842 Adventurer 0 Explorer 0 Win Type - Total 24 Types 11/1/3/3/2/0/2/2/0/0 Lore% 96 Gallery% 93 Achievement% 82 Wizard Run 0 Options --------- Layout 0 ASCII 0 Keyboard 0 Movement Mouse Keybinds 0 Fullscreen 1 Font 24/Terminus Map View 76x50 Zoom Use 0% Tactical HUD 1 Map Filters NONE Filters NONE Steam 1 RUN: 39faafb7-3048-451f-b147-1f0f7376574f